fUST/lending_fUST_20250424
["ID","MTS","AMOUNT","RATE_DAILY","PERIOD"]
[358827598,1745481035411,-500.0,0.00019178,2]
[358827599,1745481035422,-500.0,0.00019178,2]
[358827600,1745481035431,-516.70850019,0.00019178,2]
[358827601,1745481035442,-500.0,0.00019178,2]
[358827602,1745481035452,-3.90168444,0.00019178,2]
[358827616,1745481038244,-269.89715888,0.00019078,2]
[358827617,1745481038255,-269.89715884,0.00019147,2]
[358827618,1745481038265,-496.09831556,0.00019178,2]
[358827619,1745481038279,-500.0,0.00019178,2]
[358827620,1745481038289,-500.0,0.00019178,2]
[358827621,1745481038298,-500.0,0.00019178,2]
[358827622,1745481038308,-500.0,0.00019178,2]
[358827623,1745481038318,-500.0,0.00019178,2]
[358827624,1745481038328,-500.0,0.00019178,2]
[358827626,1745481038339,-500.0,0.00019178,2]
[358827627,1745481038348,-500.0,0.00019178,2]
[358827629,1745481038358,-500.0,0.00019178,2]
[358827631,1745481038368,-500.0,0.00019178,2]
[358827633,1745481038377,-500.0,0.00019178,2]
[358827635,1745481038387,-500.0,0.00019178,2]
[358827636,1745481038397,-1000.0,0.00019178,2]
[358827638,1745481038407,-994.58,0.00019178,2]
[358827640,1745481038417,-157.82585272,0.00019178,2]
[358827642,1745481038427,-1313.25,0.00019178,2]
[358827643,1745481038437,-831.73,0.00019178,2]
[358827645,1745481038447,-715.58,0.00019178,2]
[358827647,1745481038458,-503.83614825,0.00019178,2]
[358827648,1745481038467,-1855.96,0.00019178,2]
[358827649,1745481038477,-500.0,0.00019178,2]
[358827651,1745481038487,-832.93,0.00019178,2]
[358827653,1745481038499,-500.0,0.00019178,2]
[358827655,1745481038512,-500.0,0.00019178,2]
[358827656,1745481038522,-500.0,0.00019178,2]
[358827658,1745481038531,-500.0,0.00019178,2]
[358827659,1745481038540,-500.0,0.00019178,2]
[358827660,1745481038550,-500.8713946,0.00019178,2]
[358827662,1745481038564,-238.84372746,0.00019178,2]
[358827663,1745481038573,-500.0,0.00019178,2]
[358827664,1745481038583,-500.0,0.00019178,2]
[358827665,1745481038595,-3366.77,0.00019178,2]
[358827666,1745481038605,-500.0,0.00019178,2]
[358827667,1745481038614,-500.0,0.00019178,2]
[358827668,1745481038624,-500.0,0.00019178,2]
[358827669,1745481038634,-500.0,0.00019178,2]
[358827670,1745481038643,-500.0,0.00019178,2]
[358827671,1745481038653,-500.82817405,0.00019178,2]
[358827672,1745481038663,-500.0,0.00019178,2]
[358827673,1745481038673,-500.0,0.00019178,2]
[358827674,1745481038682,-500.0,0.00019178,2]
[358827675,1745481038692,-500.0,0.00019178,2]
[358827676,1745481038701,-661.39,0.00019178,2]
[358827677,1745481038711,-500.0,0.00019178,2]
[358827678,1745481038721,-510.10067422,0.00019178,2]
[358827679,1745481038730,-500.0,0.00019178,2]
[358827680,1745481038739,-500.0,0.00019178,2]
[358827681,1745481038748,-500.0,0.00019178,2]
[358827682,1745481038757,-500.53962334,0.00019178,2]
[358827683,1745481038766,-500.0,0.00019178,2]
[358827684,1745481038776,-500.0,0.00019178,2]
[358827685,1745481038786,-500.0,0.00019178,2]
[358827686,1745481038795,-500.0,0.00019178,2]
[358827687,1745481038804,-500.0,0.00019178,2]
[358827688,1745481038813,-500.0,0.00019178,2]
[358827689,1745481038822,-623.77,0.00019178,2]
[358827690,1745481038831,-698.5,0.00019178,2]
[358827691,1745481038841,-500.0,0.00019178,2]
[358827692,1745481038852,-755.83,0.00019178,2]
[358827693,1745481038861,-500.0,0.00019178,2]
[358827694,1745481038870,-1135.96,0.00019178,2]
[358827695,1745481038881,-500.0,0.00019178,2]
[358827696,1745481038891,-711.74,0.00019178,2]
[358827697,1745481038900,-500.0,0.00019178,2]
[358827698,1745481038909,-500.0,0.00019178,2]
[358827699,1745481038918,-500.0,0.00019178,2]
[358827700,1745481038927,-500.0,0.00019178,2]
[358827701,1745481038937,-326.35063124,0.00019178,2]
[358827702,1745481038948,-951.63,0.00019178,2]
[358827703,1745481038958,-771.61,0.00019178,2]
[358827704,1745481038967,-500.0,0.00019178,2]
[358827705,1745481038976,-723.91,0.00019178,2]
[358827706,1745481038985,-500.0,0.00019178,2]
[358827707,1745481038994,-500.0,0.00019178,2]
[358827708,1745481039003,-500.0,0.00019178,2]
[358827709,1745481039012,-500.0,0.00019178,2]
[358827710,1745481039021,-500.0,0.00019178,2]
[358827711,1745481039030,-500.0,0.00019178,2]
[358827712,1745481039039,-500.0,0.00019178,2]
[358827713,1745481039048,-1123.82,0.00019178,2]
[358827714,1745481039057,-500.0,0.00019178,2]
[358827715,1745481039066,-500.0,0.00019178,2]
[358827716,1745481039075,-872.99,0.00019178,2]
[358827717,1745481039085,-500.0,0.00019178,2]
[358827718,1745481039094,-500.0,0.00019178,2]
[358827719,1745481039104,-508.68888174,0.00019178,2]
[358827720,1745481039113,-2711.59,0.00019178,2]
[358827721,1745481039122,-500.57345766,0.00019178,2]
[358827722,1745481039131,-500.0,0.00019178,2]
[358827723,1745481039140,-500.0,0.00019178,2]
[358827724,1745481039149,-500.0,0.00019178,2]
[358827725,1745481039158,-637.09266458,0.00019178,2]
[358827726,1745481039167,-500.0,0.00019178,2]
[358827727,1745481039176,-500.9846911,0.00019178,2]
[358827728,1745481039185,-500.0,0.00019178,2]
[358827729,1745481039194,-500.0,0.00019178,2]
[358827730,1745481039203,-500.0,0.00019178,2]
[358827731,1745481039213,-623.92209028,0.00019178,2]
[358827732,1745481039222,-500.0,0.00019178,2]
[358827733,1745481039231,-500.0,0.00019178,2]
[358827734,1745481039240,-500.0,0.00019178,2]
[358827735,1745481039249,-500.00000001,0.00019178,2]
[358827736,1745481039258,-500.0,0.00019178,2]
[358827737,1745481039267,-500.95991757,0.00019178,2]
[358827738,1745481039277,-717.2,0.00019178,2]
[358827739,1745481039285,-500.0,0.00019178,2]
[358827740,1745481039294,-500.0,0.00019178,2]
[358827741,1745481039303,-500.0,0.00019178,2]
[358827742,1745481039313,-500.0,0.00019178,2]
[358827743,1745481039322,-500.0,0.00019178,2]
[358827744,1745481039330,-500.0,0.00019178,2]
[358827745,1745481039340,-622.05,0.00019178,2]
[358827746,1745481039349,-500.0,0.00019178,2]
[358827747,1745481039358,-500.0,0.00019178,2]
[358827748,1745481039367,-500.0,0.00019178,2]
[358827749,1745481039376,-479.61757413,0.00019178,2]
[358827750,1745481039385,-500.0,0.00019178,2]
[358827751,1745481039394,-500.0,0.00019178,2]
[358827752,1745481039403,-500.0,0.00019178,2]
[358827753,1745481039413,-500.0,0.00019178,2]
[358827754,1745481039422,-500.0,0.00019178,2]
[358827755,1745481039432,-333.76661461,0.00019178,2]
[358827756,1745481039441,-605.54,0.00019178,2]
[358827757,1745481039451,-500.0,0.00019178,2]
[358827758,1745481039460,-500.0,0.00019178,2]
[358827759,1745481039470,-500.0,0.00019178,2]
[358827760,1745481039479,-500.0,0.00019178,2]
[358827761,1745481039488,-555.07,0.00019178,2]
[358827762,1745481039500,-500.0,0.00019178,2]
[358827763,1745481039509,-6703.88,0.00019178,2]
[358827764,1745481039519,-500.0,0.00019178,2]
[358827765,1745481039528,-609.97472811,0.00019178,2]
[358827766,1745481039538,-473.94563818,0.00019178,2]
[358827767,1745481039547,-500.0,0.00019178,2]
[358827768,1745481039560,-500.0,0.00019178,2]
[358827769,1745481039570,-507.99607365,0.00019178,2]
[358827770,1745481039579,-500.0,0.00019178,2]
[358827771,1745481039590,-570.56674627,0.00019178,2]
[358827772,1745481039599,-500.0,0.00019178,2]
[358827773,1745481039609,-500.0,0.00019178,2]
[358827774,1745481039618,-947.34,0.00019178,2]
[358827775,1745481039627,-500.0,0.00019178,2]
[358827776,1745481039637,-1380.11,0.00019178,2]
[358827777,1745481039647,-500.0,0.00019178,2]
[358827778,1745481039656,-504.42577727,0.00019178,2]
[358827779,1745481039666,-500.0,0.00019178,2]
[358827780,1745481039676,-500.0,0.00019178,2]
[358827781,1745481039686,-505.97162203,0.00019178,2]
[358827782,1745481039696,-500.0,0.00019178,2]
[358827783,1745481039705,-500.0,0.00019178,2]
[358827784,1745481039715,-500.0,0.00019178,2]
[358827785,1745481039724,-500.0,0.00019178,2]
[358827786,1745481039733,-500.0,0.00019178,2]
[358827787,1745481039743,-1380.11,0.00019178,2]
[358827788,1745481039753,-500.0,0.00019178,2]
[358827789,1745481039762,-500.0,0.00019178,2]
[358827790,1745481039771,-500.0,0.00019178,2]
[358827791,1745481039781,-500.0,0.00019178,2]
[358827792,1745481039790,-384.30788964,0.00019178,2]
[358827793,1745481039799,-500.0,0.00019178,2]
[358827794,1745481039809,-500.0,0.00019178,2]
[358827795,1745481039818,-515.06,0.00019178,2]
[358827796,1745481039827,-500.0,0.00019178,2]
[358827797,1745481039837,-500.0,0.00019178,2]
[358827798,1745481039846,-1063.87,0.00019178,2]
[358827799,1745481039964,-663.4,0.00019178,2]
[358827800,1745481039975,-500.0,0.00019178,2]
[358827801,1745481039985,-1143.38,0.00019178,2]
[358827802,1745481039994,-500.0,0.00019178,2]
[358827803,1745481040004,-500.0,0.00019178,2]
[358827804,1745481040013,-500.0,0.00019178,2]
[358827805,1745481040022,-542.51,0.00019178,2]
[358827806,1745481040031,-500.0,0.00019178,2]
[358827807,1745481040040,-500.0,0.00019178,2]
[358827808,1745481040050,-1687.77,0.00019178,2]
[358827809,1745481040060,-185.55971792,0.00019178,2]
[358827810,1745481040069,-500.0,0.00019178,2]
[358827811,1745481040079,-1218.09,0.00019178,2]
[358827812,1745481040088,-700.08,0.00019178,2]
[358827813,1745481040098,-446.39190096,0.00019178,2]
[358827814,1745481040107,-503.0502374,0.00019178,2]
[358827815,1745481040117,-500.0,0.00019178,2]
[358827816,1745481040126,-2623.87,0.00019178,2]
[358827817,1745481040135,-1201.56,0.00019178,2]
[358827818,1745481040145,-500.0,0.00019178,2]
[358827819,1745481040154,-500.0,0.00019178,2]
[358827820,1745481040163,-1166.22,0.00019178,2]
[358827821,1745481040172,-508.9880617,0.00019178,2]
[358827822,1745481040182,-500.0,0.00019178,2]
[358827823,1745481040191,-500.0,0.00019178,2]
[358827824,1745481040200,-2070.72,0.00019178,2]
[358827825,1745481040210,-1000.0,0.00019178,2]
[358827826,1745481040219,-2198.7,0.00019178,2]
[358827827,1745481040229,-500.0,0.00019178,2]
[358827828,1745481040238,-500.0,0.00019178,2]
[358827829,1745481040247,-1640.96,0.00019178,2]
[358827830,1745481040257,-500.0,0.00019178,2]
[358827831,1745481040266,-500.0,0.00019178,2]
[358827832,1745481040276,-527.31,0.00019178,2]
[358827833,1745481040286,-552.97883927,0.00019178,2]
[358827834,1745481040295,-500.0,0.00019178,2]
[358827835,1745481040304,-500.0,0.00019178,2]
[358827836,1745481040314,-505.45995843,0.00019178,2]
[358827837,1745481040324,-500.0,0.00019178,2]
[358827838,1745481040334,-3792.74,0.00019178,2]
[358827839,1745481040343,-500.0,0.00019178,2]
[358827840,1745481040353,-1185.55,0.00019178,2]
[358827841,1745481040362,-5426.96,0.00019178,2]
[358827842,1745481040372,-500.0,0.00019178,2]
[358827843,1745481040382,-500.0,0.00019178,2]
[358827844,1745481040391,-294.10760555,0.00019178,2]
[358827845,1745481040401,-669.99,0.00019178,2]
[358827846,1745481040411,-500.0,0.00019178,2]
[358827847,1745481040421,-3019.95,0.00019178,2]
[358827848,1745481040430,-3019.95,0.00019178,2]
[358827849,1745481040440,-854.4,0.00019178,2]
[358827850,1745481040450,-3019.95,0.00019178,2]
[358827852,1745481040459,-3019.95,0.00019178,2]
[358827853,1745481040469,-3019.95,0.00019178,2]
[358827854,1745481040479,-3019.95,0.00019178,2]
[358827856,1745481040489,-3019.95,0.00019178,2]
[358827858,1745481040498,-3019.95,0.00019178,2]
[358827859,1745481040508,-3019.95,0.00019178,2]
[358827860,1745481040518,-3019.95,0.00019178,2]
[358827861,1745481040527,-359.02992987,0.00019178,2]
[358827862,1745481040545,-388.84957946,0.00019178,2]
[358827863,1745481040560,-2272.07049067,0.00019178,2]
[358827864,1745481040569,-3019.95,0.00019178,2]
[358827865,1745481040579,-2688.79563292,0.00019178,2]
[358827866,1745481040591,-331.15436708,0.00019178,2]
[358827867,1745481040602,-1733.65482882,0.00019178,2]
[358827868,1745481040622,-633.17682713,0.00019178,2]
[358827869,1745481040636,-653.11834405,0.00019178,2]
[358827870,1745481040646,-3019.95,0.00019178,2]
[358827871,1745481040655,-3019.95,0.00019178,2]
[358827872,1745481040665,-500.0,0.00019178,2]
[358827874,1745481040675,-3019.95,0.00019178,2]
[358827876,1745481040684,-280.27331324,0.00019178,2]
[358827877,1745481040693,-3019.95,0.00019178,2]
[358827878,1745481040703,-3019.95,0.00019178,2]
[358827879,1745481040712,-795.55,0.00019178,2]
[358827880,1745481040722,-500.0,0.00019178,2]
[358827881,1745481040732,-1382.12,0.00019178,2]
[358827882,1745481040742,-500.0,0.00019178,2]
[358827883,1745481040752,-500.0,0.00019178,2]
[358827884,1745481040761,-507.08012579,0.00019178,2]
[358827885,1745481040771,-619.1056538,0.00019178,2]
[358827887,1745481040781,-500.0,0.00019178,2]
[358827888,1745481040790,-383.1626213,0.00019178,2]
[358827889,1745481040800,-500.0,0.00019178,2]
[358827890,1745481040809,-500.0,0.00019178,2]
[358827891,1745481040819,-500.0,0.00019178,2]
[358827892,1745481040828,-500.0,0.00019178,2]
[358827893,1745481040838,-500.0,0.00019178,2]
[358827894,1745481040847,-500.0,0.00019178,2]
[358827895,1745481040856,-500.0,0.00019178,2]
[358827896,1745481040865,-2066.74,0.00019178,2]
[358827897,1745481040874,-1266.11,0.00019178,2]
[358827898,1745481040883,-500.0,0.00019178,2]
[358827899,1745481040892,-4055.17,0.00019178,2]
[358827900,1745481040902,-500.0,0.00019178,2]
[358827901,1745481040911,-500.0,0.00019178,2]
[358827902,1745481040920,-500.0,0.00019178,2]
[358827903,1745481040929,-500.0,0.00019178,2]
[358827904,1745481040939,-500.0,0.00019178,2]
[358827905,1745481040948,-500.0,0.00019178,2]
[358827906,1745481040958,-2019.8,0.00019178,2]
[358827907,1745481040968,-500.0,0.00019178,2]
[358827908,1745481040978,-500.0,0.00019178,2]
[358827909,1745481040988,-2825.89,0.00019178,2]
[358827910,1745481040997,-529.81,0.00019178,2]
[358827911,1745481041007,-500.868303,0.00019178,2]
[358827912,1745481041016,-500.0,0.00019178,2]
[358827913,1745481041026,-500.0,0.00019178,2]
[358827914,1745481041035,-500.0,0.00019178,2]
[358827915,1745481041045,-500.0,0.00019178,2]
[358827916,1745481041054,-500.0,0.00019178,2]
[358827917,1745481041063,-510.81369818,0.00019178,2]
[358827918,1745481041073,-500.0,0.00019178,2]
[358827919,1745481041083,-926.08,0.00019178,2]
[358827920,1745481041093,-500.0,0.00019178,2]
[358827921,1745481041103,-500.0,0.00019178,2]
[358827922,1745481041112,-372.67114753,0.00019178,2]
[358827923,1745481041122,-500.0,0.00019178,2]
[358827924,1745481041131,-500.0,0.00019178,2]
[358827925,1745481041140,-699.24,0.00019178,2]
[358827926,1745481041150,-1016.69,0.00019178,2]
[358827927,1745481041159,-500.0,0.00019178,2]
[358827928,1745481041168,-531.54,0.00019178,2]
[358827929,1745481041177,-500.0,0.00019178,2]
[358827930,1745481041187,-904.84,0.00019178,2]
[358827931,1745481041197,-5906.07,0.00019178,2]
[358827932,1745481041206,-500.0,0.00019178,2]
[358827933,1745481041215,-6429.02,0.00019178,2]
[358827934,1745481041224,-292.88290146,0.00019178,2]
[358827935,1745481041236,-501.80628382,0.00019178,2]
[358827936,1745481041246,-500.0,0.00019178,2]
[358827937,1745481041256,-500.0,0.00019178,2]
[358827938,1745481041265,-5090.74,0.00019178,2]
[358827939,1745481041275,-500.0,0.00019178,2]
[358827940,1745481041285,-622.91853306,0.00019178,2]
[358827941,1745481041295,-500.0,0.00019178,2]
[358827942,1745481041304,-690.33,0.00019178,2]
[358827943,1745481041314,-500.0,0.00019178,2]
[358827944,1745481041323,-501.2090953,0.00019178,2]
[358827945,1745481041333,-505.25597955,0.00019178,2]
[358827946,1745481041343,-3185.9,0.00019178,2]
[358827947,1745481041352,-500.0,0.00019178,2]
[358827948,1745481041361,-1297.59,0.00019178,2]
[358827949,1745481041370,-609.02,0.00019178,2]
[358827950,1745481041380,-500.0,0.00019178,2]
[358827951,1745481041389,-500.0,0.00019178,2]
[358827952,1745481041398,-500.0,0.00019178,2]
[358827953,1745481041407,-1986.71,0.00019178,2]
[358827954,1745481041417,-1183.67,0.00019178,2]
[358827955,1745481041427,-500.0,0.00019178,2]
[358827956,1745481041436,-500.0,0.00019178,2]
[358827957,1745481041446,-506.5047869,0.00019178,2]
[358827958,1745481041455,-513.9128067,0.00019178,2]
[358827959,1745481041465,-502.2921335,0.00019178,2]
[358827960,1745481041475,-500.0,0.00019178,2]
[358827961,1745481041484,-500.0,0.00019178,2]
[358827962,1745481041494,-518.59833427,0.00019178,2]
[358827963,1745481041508,-500.0,0.00019178,2]
[358827964,1745481041517,-4620.41,0.00019178,2]
[358827965,1745481041527,-500.0,0.00019178,2]
[358827966,1745481041536,-788.23,0.00019178,2]
[358827967,1745481041546,-505.15971468,0.00019178,2]
[358827968,1745481041556,-500.0,0.00019178,2]
[358827969,1745481041566,-500.0,0.00019178,2]
[358827970,1745481041575,-502.76787948,0.00019178,2]
[358827971,1745481041585,-355.56288096,0.00019178,2]
[358827972,1745481041595,-4694.43,0.00019178,2]
[358827973,1745481041605,-500.0,0.00019178,2]
[358827974,1745481041614,-500.0,0.00019178,2]
[358827975,1745481041623,-502.29740143,0.00019178,2]
[358827976,1745481041633,-691.86,0.00019178,2]
[358827977,1745481041643,-500.0,0.00019178,2]
[358827978,1745481041652,-500.0,0.00019178,2]
[358827979,1745481041664,-500.0,0.00019178,2]
[358827980,1745481041674,-627.72,0.00019178,2]
[358827981,1745481041683,-5788.6,0.00019178,2]
[358827982,1745481041693,-822.8,0.00019178,2]
[358827983,1745481041702,-500.0,0.00019178,2]
[358827984,1745481041712,-538.5,0.00019178,2]
[358827985,1745481041721,-670.41,0.00019178,2]
[358827986,1745481041730,-507.36105845,0.00019178,2]
[358827987,1745481041739,-538.85286299,0.00019178,2]
[358827988,1745481041749,-585.24,0.00019178,2]
[358827989,1745481041758,-500.0,0.00019178,2]
[358827990,1745481041767,-500.38723207,0.00019178,2]
[358827991,1745481041776,-500.0,0.00019178,2]
[358827992,1745481041786,-596.88768614,0.00019178,2]
[358827993,1745481041795,-501.97390228,0.00019178,2]
[358827994,1745481041805,-500.0,0.00019178,2]
[358827995,1745481041815,-782.91,0.00019178,2]
[358827996,1745481041923,-501.92610732,0.00019178,2]
[358827997,1745481041932,-502.34817361,0.00019178,2]
[358827998,1745481041942,-554.88,0.00019178,2]
[358827999,1745481041951,-500.0,0.00019178,2]
[358828000,1745481041960,-421.96198456,0.00019178,2]
[358828001,1745481041969,-502.26858678,0.00019178,2]
[358828002,1745481041978,-1681.18,0.00019178,2]
[358828003,1745481041987,-829.57,0.00019178,2]
[358828004,1745481041996,-736.48,0.00019178,2]
[358828005,1745481042006,-300.0,0.00019178,2]
[358828006,1745481042015,-500.0,0.0001945,2]
[358828007,1745481042024,-182.44,0.0001945,2]
[358828008,1745481042034,-3019.95,0.0001945,2]
[358828009,1745481042046,-3019.95,0.0001945,2]
[358828010,1745481042057,-3019.95,0.0001945,2]
[358828011,1745481042067,-3019.95,0.0001945,2]
[358828012,1745481042076,-3019.96979662,0.0001945,2]
[358828013,1745481042085,-840.0731918,0.00019452,3]
[358828014,1745481042095,-160.0,0.00019452,3]
[358828015,1745481042104,-283087.22196972,0.00019452,2]
[358828016,1745481042113,-38988.14866693,0.00019452,3]
[358828017,1745481042123,-500.0,0.00019452,2]
[358828018,1745481042132,-500.0,0.00019452,2]
[358828019,1745481042141,-500.0,0.00019452,2]
[358828020,1745481042151,-500.0,0.00019452,2]
[358828021,1745481042160,-500.0,0.00019452,2]
[358828022,1745481042169,-500.0,0.00019452,2]
[358828023,1745481042179,-500.0,0.00019452,2]
[358828024,1745481042188,-500.0,0.00019452,2]
[358828025,1745481042197,-500.0,0.00019452,2]
[358828026,1745481042207,-500.0,0.00019452,2]
[358828027,1745481042216,-500.0,0.00019452,2]
[358828028,1745481042226,-500.0,0.00019452,2]
[358828029,1745481042235,-566.57,0.00019452,2]
[358828030,1745481042245,-500.0,0.00019452,2]
[358828031,1745481042254,-500.0,0.00019452,2]
[358828032,1745481042263,-500.0,0.00019452,2]
[358828033,1745481042272,-500.0,0.00019452,2]
[358828034,1745481042281,-500.0,0.00019452,2]
[358828035,1745481042291,-500.0,0.00019452,2]
[358828036,1745481042300,-500.0,0.00019452,2]
[358828037,1745481042309,-500.0,0.00019452,2]
[358828038,1745481042318,-500.0,0.00019452,2]
[358828039,1745481042328,-503.37159524,0.00019452,2]
[358828040,1745481042337,-500.0,0.00019452,2]
[358828041,1745481042346,-502.84535847,0.00019452,2]
[358828042,1745481042356,-518.22253615,0.00019452,2]
[358828043,1745481042366,-500.0,0.00019452,2]
[358828044,1745481042375,-577.45,0.00019452,2]
[358828045,1745481042385,-500.0,0.00019452,2]
[358828046,1745481042394,-602.28,0.00019452,2]
[358828047,1745481042403,-502.04587694,0.00019452,2]
[358828048,1745481042412,-500.0,0.00019452,2]
[358828049,1745481042421,-500.0,0.00019452,2]
[358828050,1745481042430,-500.0,0.00019452,2]
[358828051,1745481042440,-281.68515943,0.00019452,2]
[358828052,1745481042449,-500.0,0.00019452,2]
[358828053,1745481042458,-500.0,0.00019452,2]
[358828054,1745481042467,-500.0,0.00019452,2]
[358828055,1745481042477,-500.0,0.00019452,2]
[358828056,1745481042486,-500.0,0.00019452,2]
[358828057,1745481042496,-500.0,0.00019452,2]
[358828058,1745481042505,-500.0,0.00019452,2]
[358828059,1745481042515,-500.0,0.00019452,2]
[358828060,1745481042525,-500.0,0.00019452,2]
[358828061,1745481042534,-402.26189596,0.00019452,2]
[358828062,1745481042544,-448.48399133,0.00019452,2]
[358828063,1745481042554,-500.0,0.00019452,2]
[358828064,1745481042569,-500.0,0.00019452,2]
[358828065,1745481042578,-500.0,0.00019452,2]
[358828066,1745481042587,-500.0,0.00019452,2]
[358828067,1745481042597,-500.0,0.00019452,2]
[358828068,1745481042609,-188.0538308,0.00019452,2]
[358828069,1745481042620,-500.0,0.00019452,2]
[358828070,1745481042629,-725.41,0.00019452,2]
[358828071,1745481042640,-500.0,0.00019452,2]
[358828072,1745481042650,-327.59220165,0.00019452,2]
[358828073,1745481042659,-500.0,0.00019452,2]
[358828074,1745481042669,-500.0,0.00019452,2]
[358828075,1745481042678,-624.23,0.00019452,2]
[358828076,1745481042687,-500.0,0.00019452,2]
[358828077,1745481042697,-500.0,0.00019452,2]
[358828078,1745481042706,-913.1,0.00019452,2]
[358828079,1745481042716,-500.0,0.00019452,2]
[358828080,1745481042726,-511.24805889,0.00019452,2]
[358828081,1745481042736,-500.0,0.00019452,2]
[358828083,1745481042746,-501.94479741,0.00019452,2]
[358828084,1745481042755,-501.5162689,0.00019452,2]
[358828085,1745481042766,-500.0,0.00019452,2]
[358828086,1745481042775,-500.0,0.00019452,2]
[358828087,1745481042785,-500.0,0.00019452,2]
[358828088,1745481042794,-500.0,0.00019452,2]
[358828089,1745481042804,-500.0,0.00019452,2]
[358828090,1745481042813,-500.0,0.00019452,2]
[358828092,1745481042823,-500.0,0.00019452,2]
[358828093,1745481042832,-500.0,0.00019452,2]
[358828095,1745481042842,-500.0,0.00019452,2]
[358828097,1745481042851,-500.0,0.00019452,2]
[358828099,1745481042862,-500.0,0.00019452,2]
[358828101,1745481042871,-500.0,0.00019452,2]
[358828102,1745481042881,-504.60093107,0.00019452,2]
[358828104,1745481042890,-503.59858341,0.00019452,2]
[358828106,1745481042900,-500.0,0.00019452,2]
[358828108,1745481042909,-500.0,0.00019452,2]
[358828109,1745481042919,-500.0,0.00019452,2]
[358828110,1745481042928,-500.0,0.00019452,2]
[358828111,1745481042938,-500.0,0.00019452,2]
[358828112,1745481042947,-500.0,0.00019452,2]
[358828113,1745481042956,-500.0,0.00019452,2]
[358828114,1745481042965,-505.99046163,0.00019452,2]
[358828115,1745481042975,-500.0,0.00019452,2]
[358828116,1745481042984,-500.0,0.00019452,2]
[358828117,1745481042994,-500.0,0.00019452,2]
[358828118,1745481043003,-500.0,0.00019452,2]
[358828119,1745481043012,-500.0,0.00019452,2]
[358828120,1745481043022,-534.37397577,0.00019452,2]
[358828121,1745481043031,-500.0,0.00019452,2]
[358828122,1745481043041,-500.0,0.00019452,2]
[358828123,1745481043050,-639.83,0.00019452,2]
[358828124,1745481043060,-501.77172128,0.00019452,2]
[358828125,1745481043070,-500.0,0.00019452,2]
[358828126,1745481043079,-500.0,0.00019452,2]
[358828127,1745481043089,-500.0,0.00019452,2]
[358828128,1745481043098,-500.0,0.00019452,2]
[358828129,1745481043108,-500.0,0.00019452,2]
[358828130,1745481043118,-500.0,0.00019452,2]
[358828131,1745481043128,-617.78,0.00019452,2]
[358828132,1745481043137,-500.0,0.00019452,2]
[358828133,1745481043147,-298.75848983,0.00019452,2]
[358828134,1745481043156,-500.0,0.00019452,2]
[358828135,1745481043166,-500.0,0.00019452,2]
[358828136,1745481043175,-500.0,0.00019452,2]
[358828137,1745481043185,-500.0,0.00019452,2]
[358828138,1745481043195,-500.0,0.00019452,2]
[358828139,1745481043205,-383.85842922,0.00019452,2]
[358828140,1745481043215,-3938.94,0.00019452,2]